[Event "Titled Tuesday Blitz November 29 Early 2022"]
[White "Paravyan, David"]
[Black "Oro, Faustino"]
[WhiteFideId "4194985"]
[BlackFideId "20000197"]
[WhiteElo "2546"]
[BlackElo "2066"]
[Result "1/2-1/2"]
[Round "02"]
[TimeControl "180+1"]
[Date "2022.11.30"]
[WhiteClock "0:00:03"]
[BlackClock "0:00:05"]

1. e4 {[%clk 0:03:00]}  e5 {[%clk 0:02:57]} 2. Nf3 {[%clk 0:02:59]}  Nc6 {[%clk 0:02:57]} 3. Nc3 {[%clk 0:03:00]}  Nf6 {[%clk 0:02:57]} 4. d4 {[%clk 0:03:00]}  exd4 {[%clk 0:02:57]} 5. Nxd4 {[%clk 0:03:01]}  Bb4 {[%clk 0:02:58]} 6. Nxc6 {[%clk 0:03:01]}  bxc6 {[%clk 0:02:58]} 7. Bd3 {[%clk 0:03:01]}  O-O {[%clk 0:02:58]} 8. O-O {[%clk 0:03:01]}  d5 {[%clk 0:02:58]} 9. exd5 {[%clk 0:03:02]}  cxd5 {[%clk 0:02:59]} 10. Bf4 {[%clk 0:02:57]}  c6 {[%clk 0:02:55]} 11. h3 {[%clk 0:02:54]}  Be6 {[%clk 0:02:50]} 12. Ne2 {[%clk 0:02:53]}  Bd6 {[%clk 0:02:47]} 13. Qd2 {[%clk 0:02:51]}  Qd7 {[%clk 0:02:43]} 14. Rfe1 {[%clk 0:02:50]}  Rab8 {[%clk 0:02:40]} 15. b3 {[%clk 0:02:50]}  Rfe8 {[%clk 0:02:37]} 16. Rad1 {[%clk 0:02:31]}  Rbd8 {[%clk 0:02:29]} 17. Qa5 {[%clk 0:02:28]}  Nh5 {[%clk 0:01:43]} 18. Bxd6 {[%clk 0:02:11]}  Qxd6 {[%clk 0:01:44]} 19. Qxa7 {[%clk 0:02:08]}  Ra8 {[%clk 0:01:42]} 20. Qd4 {[%clk 0:02:00]}  Rxa2 {[%clk 0:01:40]} 21. Qh4 {[%clk 0:01:57]}  g6 {[%clk 0:01:38]} 22. Qg5 {[%clk 0:01:42]}  Ng7 {[%clk 0:01:23]} 23. Nc3 {[%clk 0:01:23]}  Ra7 {[%clk 0:01:16]} 24. Qe3 {[%clk 0:01:00]}  Rae7 {[%clk 0:01:13]} 25. Qg3 {[%clk 0:00:35]}  Qd7 {[%clk 0:01:04]} 26. Na4 {[%clk 0:00:34]}  Bf5 {[%clk 0:01:02]} 27. Rxe7 {[%clk 0:00:31]}  Qxe7 {[%clk 0:01:01]} 28. c4 {[%clk 0:00:22]}  Bxd3 {[%clk 0:00:58]} 29. Qxd3 {[%clk 0:00:23]}  Rd8 {[%clk 0:00:53]} 30. Nc3 {[%clk 0:00:21]}  d4 {[%clk 0:00:37]} 31. Ne4 {[%clk 0:00:21]}  Ne6 {[%clk 0:00:36]} 32. Qf3 {[%clk 0:00:20]}  Rb8 {[%clk 0:00:33]} 33. Qg3 {[%clk 0:00:20]}  Rb4 {[%clk 0:00:30]} 34. Qe5 {[%clk 0:00:18]}  Qc7 {[%clk 0:00:09]} 35. Nf6+ {[%clk 0:00:18]}  Kf8 {[%clk 0:00:09]} 36. Nxh7+ {[%clk 0:00:16]}  Kg8 {[%clk 0:00:08]} 37. Nf6+ {[%clk 0:00:16]}  Kf8 {[%clk 0:00:09]} 38. Qxc7 {[%clk 0:00:13]}  Nxc7 {[%clk 0:00:10]} 39. Rxd4 {[%clk 0:00:10]}  Rxb3 {[%clk 0:00:10]} 40. Rd6 {[%clk 0:00:08]}  Rc3 {[%clk 0:00:05]} 41. Rxc6 {[%clk 0:00:08]}  Ne6 {[%clk 0:00:05]} 42. Nd5 {[%clk 0:00:08]}  Rc1+ {[%clk 0:00:06]} 43. Kh2 {[%clk 0:00:09]}  Nd4 {[%clk 0:00:07]} 44. Rc8+ {[%clk 0:00:09]}  Kg7 {[%clk 0:00:07]} 45. Rc7 {[%clk 0:00:09]}  Kg8 {[%clk 0:00:07]} 46. Nf6+ {[%clk 0:00:09]}  Kg7 {[%clk 0:00:07]} 47. Ne8+ {[%clk 0:00:09]}  Kf8 {[%clk 0:00:07]} 48. Nd6 {[%clk 0:00:10]}  f5 {[%clk 0:00:06]} 49. Rf7+ {[%clk 0:00:10]}  Kg8 {[%clk 0:00:06]} 50. Rf6 {[%clk 0:00:11]}  Kg7 {[%clk 0:00:07]} 51. Ne8+ {[%clk 0:00:11]}  Kh6 {[%clk 0:00:07]} 52. Rf8 {[%clk 0:00:10]}  Rxc4 {[%clk 0:00:05]} 53. f4 {[%clk 0:00:05]}  Kh7 {[%clk 0:00:04]} 54. Rf7+ {[%clk 0:00:06]}  Kh6 {[%clk 0:00:03]} 55. Nf6 {[%clk 0:00:06]}  g5 {[%clk 0:00:03]} 56. fxg5+ {[%clk 0:00:04]}  Kxg5 {[%clk 0:00:04]} 57. Nd5 {[%clk 0:00:05]}  Ne2 {[%clk 0:00:02]} 58. Rg7+ {[%clk 0:00:05]}  Kh6 {[%clk 0:00:03]} 59. Re7 {[%clk 0:00:05]}  Nd4 {[%clk 0:00:03]} 60. Ne3 {[%clk 0:00:05]}  Rc3 {[%clk 0:00:02]} 61. Rd7 {[%clk 0:00:05]}  Rxe3 {[%clk 0:00:03]} 62. Rxd4 {[%clk 0:00:06]}  Kg6 {[%clk 0:00:04]} 63. Kg1 {[%clk 0:00:06]}  Ra3 {[%clk 0:00:03]} 64. Rd2 {[%clk 0:00:04]}  Ra1+ {[%clk 0:00:04]} 65. Kf2 {[%clk 0:00:05]}  Ra3 {[%clk 0:00:05]} 66. Re2 {[%clk 0:00:05]}  Kg5 {[%clk 0:00:05]} 67. Re3 {[%clk 0:00:06]}  Ra2+ {[%clk 0:00:05]} 68. Kf3 {[%clk 0:00:06]}  Ra1 {[%clk 0:00:05]} 69. g3 {[%clk 0:00:06]}  Rf1+ {[%clk 0:00:05]} 70. Kg2 {[%clk 0:00:07]}  Ra1 {[%clk 0:00:06]} 71. Rd3 {[%clk 0:00:06]}  Ra2+ {[%clk 0:00:03]} 72. Kf3 {[%clk 0:00:06]}  Ra1 {[%clk 0:00:04]} 73. h4+ {[%clk 0:00:07]}  Kg6 {[%clk 0:00:04]} 74. Rd6+ {[%clk 0:00:07]}  Kf7 {[%clk 0:00:05]} 75. Kf4 {[%clk 0:00:07]}  Rf1+ {[%clk 0:00:05]} 76. Kg5 {[%clk 0:00:04]}  Rf3 {[%clk 0:00:05]} 77. Rd7+ {[%clk 0:00:03]}  Ke6 {[%clk 0:00:04]} 78. Ra7 {[%clk 0:00:02]}  Rxg3+ {[%clk 0:00:05]} 79. Kf4 {[%clk 0:00:02]}  Rg4+ {[%clk 0:00:05]} 80. Kf3 {[%clk 0:00:03]}  Rxh4 {[%clk 0:00:06]} 81. Ra6+ {[%clk 0:00:03]}  Kf7 {[%clk 0:00:06]} 82. Rb6 {[%clk 0:00:03]}  Rg4 {[%clk 0:00:05]} 1/2-1/2


[Site "https://www.chess.com"]

[Event "Titled Tuesday Blitz November 29 Early 2022"]
[White "Petrovic, Aleksa"]
[Black "Rose, Felix"]
[WhiteFideId "967629"]
[BlackFideId "5105722"]
[WhiteElo "2224"]
[BlackElo "2039"]
[Result "1-0"]
[Round "02"]
[TimeControl "180+1"]
[Date "2022.11.30"]
[WhiteClock "0:01:21"]
[BlackClock "0:01:45"]

1. d4 {[%clk 0:03:00]}  Nf6 {[%clk 0:02:58]} 2. c4 {[%clk 0:03:01]}  e6 {[%clk 0:02:59]} 3. Nf3 {[%clk 0:03:01]}  d5 {[%clk 0:02:59]} 4. Nc3 {[%clk 0:03:00]}  Be7 {[%clk 0:02:59]} 5. Bf4 {[%clk 0:02:59]}  O-O {[%clk 0:03:00]} 6. e3 {[%clk 0:02:58]}  b6 {[%clk 0:03:00]} 7. Qc2 {[%clk 0:02:53]}  Bb7 {[%clk 0:02:59]} 8. Rd1 {[%clk 0:02:53]}  Nbd7 {[%clk 0:02:58]} 9. Bd3 {[%clk 0:02:53]}  c5 {[%clk 0:02:54]} 10. cxd5 {[%clk 0:02:52]}  cxd4 {[%clk 0:02:45]} 11. dxe6 {[%clk 0:02:41]}  dxc3 {[%clk 0:02:45]} 12. exd7 {[%clk 0:02:36]}  cxb2 {[%clk 0:02:35]} 13. O-O {[%clk 0:02:32]}  Kh8 {[%clk 0:02:03]} 14. Qxb2 {[%clk 0:02:19]}  Qxd7 {[%clk 0:01:59]} 15. Be4 {[%clk 0:01:42]}  Qc8 {[%clk 0:01:58]} 16. Rc1 {[%clk 0:01:39]}  Bc5 {[%clk 0:01:54]} 17. Rxc5 {[%clk 0:01:29]}  bxc5 {[%clk 0:01:48]} 18. Bxb7 {[%clk 0:01:22]}  Rb8 {[%clk 0:01:47]} 19. Bxb8 {[%clk 0:01:21]}  Qxb8 {[%clk 0:01:45]} 20. Rb1 {[%clk 0:01:21]} 1-0


[Site "https://www.chess.com"]

[Event "Titled Tuesday Blitz November 29 Early 2022"]
[White "Pinheiro, Iung Alicio de O."]
[Black "Jimenez, Joaquin"]
[WhiteFideId "2104350"]
[BlackFideId "109860"]
[WhiteElo "2283"]
[BlackElo "2163"]
[Result "0-1"]
[Round "02"]
[TimeControl "180+1"]
[Date "2022.11.30"]
[WhiteClock "0:00:01"]
[BlackClock "0:00:11"]

1. e4 {[%clk 0:02:58]}  e6 {[%clk 0:02:59]} 2. b3 {[%clk 0:02:53]}  d5 {[%clk 0:02:57]} 3. Bb2 {[%clk 0:02:53]}  dxe4 {[%clk 0:02:57]} 4. Nc3 {[%clk 0:02:53]}  Nf6 {[%clk 0:02:57]} 5. g4 {[%clk 0:02:52]}  h6 {[%clk 0:02:54]} 6. Bg2 {[%clk 0:02:51]}  Bd7 {[%clk 0:02:47]} 7. h4 {[%clk 0:02:36]}  Bc6 {[%clk 0:02:45]} 8. g5 {[%clk 0:02:32]}  hxg5 {[%clk 0:02:43]} 9. hxg5 {[%clk 0:02:33]}  Rxh1 {[%clk 0:02:43]} 10. Bxh1 {[%clk 0:02:33]}  Nfd7 {[%clk 0:02:39]} 11. Nxe4 {[%clk 0:02:11]}  Nc5 {[%clk 0:02:36]} 12. Qe2 {[%clk 0:02:02]}  Nxe4 {[%clk 0:02:33]} 13. Bxe4 {[%clk 0:02:03]}  Qxg5 {[%clk 0:02:31]} 14. Nf3 {[%clk 0:02:00]}  Qa5 {[%clk 0:02:27]} 15. Ne5 {[%clk 0:01:53]}  Bd6 {[%clk 0:02:07]} 16. Nc4 {[%clk 0:01:26]}  Qg5 {[%clk 0:01:49]} 17. O-O-O {[%clk 0:01:24]}  Bxe4 {[%clk 0:01:44]} 18. Qxe4 {[%clk 0:01:19]}  Nc6 {[%clk 0:01:44]} 19. Qh7 {[%clk 0:00:53]}  O-O-O {[%clk 0:01:39]} 20. Bxg7 {[%clk 0:00:50]}  Ne5 {[%clk 0:01:19]} 21. Bxe5 {[%clk 0:00:38]}  Bxe5 {[%clk 0:01:17]} 22. Qxf7 {[%clk 0:00:39]}  Qf6 {[%clk 0:01:13]} 23. Qxf6 {[%clk 0:00:31]}  Bxf6 {[%clk 0:01:13]} 24. Re1 {[%clk 0:00:31]}  Kd7 {[%clk 0:01:10]} 25. Rh1 {[%clk 0:00:32]}  Rg8 {[%clk 0:01:08]} 26. Rh7+ {[%clk 0:00:31]}  Kc8 {[%clk 0:01:08]} 27. Kd1 {[%clk 0:00:30]}  Bd4 {[%clk 0:01:01]} 28. Rf7 {[%clk 0:00:27]}  b5 {[%clk 0:00:50]} 29. Ne3 {[%clk 0:00:26]}  Rg1+ {[%clk 0:00:48]} 30. Ke2 {[%clk 0:00:26]}  Ra1 {[%clk 0:00:48]} 31. c3 {[%clk 0:00:24]}  Bb6 {[%clk 0:00:48]} 32. Re7 {[%clk 0:00:23]}  Rxa2 {[%clk 0:00:47]} 33. b4 {[%clk 0:00:23]}  a5 {[%clk 0:00:30]} 34. bxa5 {[%clk 0:00:23]}  Bxa5 {[%clk 0:00:30]} 35. Kd3 {[%clk 0:00:23]}  b4 {[%clk 0:00:29]} 36. cxb4 {[%clk 0:00:14]}  Bxb4 {[%clk 0:00:20]} 37. Rxe6 {[%clk 0:00:14]}  Rxd2+ {[%clk 0:00:19]} 38. Kc4 {[%clk 0:00:14]}  Bd6 {[%clk 0:00:19]} 39. Rf6 {[%clk 0:00:12]}  Kd7 {[%clk 0:00:18]} 40. Nd5 {[%clk 0:00:08]}  Rc2+ {[%clk 0:00:17]} 41. Kd3 {[%clk 0:00:07]}  Ra2 {[%clk 0:00:18]} 42. f4 {[%clk 0:00:07]}  Ra3+ {[%clk 0:00:16]} 43. Ke4 {[%clk 0:00:07]}  Ra4+ {[%clk 0:00:15]} 44. Kf5 {[%clk 0:00:07]}  Ra5 {[%clk 0:00:15]} 45. Ke4 {[%clk 0:00:07]}  Ra4+ {[%clk 0:00:15]} 46. Kf3 {[%clk 0:00:07]}  c5 {[%clk 0:00:14]} 47. Ne3 {[%clk 0:00:06]}  Ra3 {[%clk 0:00:13]} 48. Ke4 {[%clk 0:00:06]}  Ra4+ {[%clk 0:00:12]} 49. Kf3 {[%clk 0:00:06]}  c4 {[%clk 0:00:12]} 50. Rf7+ {[%clk 0:00:01]}  Ke6 {[%clk 0:00:11]} 51. Rh7 {[%clk 0:00:01]}  Ra3 {[%clk 0:00:11]} 52. Rh6+ {[%clk 0:00:01]}  Kd7 {[%clk 0:00:11]} 0-1


[Site "https://www.chess.com"]

[Event "Titled Tuesday Blitz November 29 Early 2022"]
[White "Poltorak, Sebastian"]
[Black "De Souza, Cristiano Gomes"]
[WhiteFideId "1199498"]
[BlackFideId "2151758"]
[WhiteElo "2196"]
[BlackElo "2068"]
[Result "1-0"]
[Round "02"]
[TimeControl "180+1"]
[Date "2022.11.30"]
[WhiteClock "0:01:05"]
[BlackClock "0:00:55"]

1. e4 {[%clk 0:02:51]}  c5 {[%clk 0:02:57]} 2. Nc3 {[%clk 0:02:50]}  d6 {[%clk 0:02:57]} 3. d4 {[%clk 0:02:49]}  cxd4 {[%clk 0:02:56]} 4. Qxd4 {[%clk 0:02:50]}  Nc6 {[%clk 0:02:55]} 5. Qd2 {[%clk 0:02:50]}  Nf6 {[%clk 0:02:54]} 6. b3 {[%clk 0:02:47]}  g6 {[%clk 0:02:54]} 7. Bb2 {[%clk 0:02:48]}  Bg7 {[%clk 0:02:54]} 8. O-O-O {[%clk 0:02:47]}  Kf8 {[%clk 0:02:53]} 9. Nf3 {[%clk 0:02:45]}  Bg4 {[%clk 0:02:53]} 10. Be2 {[%clk 0:02:44]}  h5 {[%clk 0:02:51]} 11. h3 {[%clk 0:02:44]}  Bxf3 {[%clk 0:02:46]} 12. gxf3 {[%clk 0:02:44]}  Bh6 {[%clk 0:02:46]} 13. f4 {[%clk 0:02:44]}  e5 {[%clk 0:02:42]} 14. Qxd6+ {[%clk 0:02:20]}  Qxd6 {[%clk 0:02:41]} 15. Rxd6 {[%clk 0:02:21]}  Bxf4+ {[%clk 0:02:41]} 16. Kb1 {[%clk 0:02:21]}  Kg7 {[%clk 0:02:40]} 17. Rhd1 {[%clk 0:02:04]}  Rad8 {[%clk 0:02:37]} 18. Rxd8 {[%clk 0:01:53]}  Rxd8 {[%clk 0:02:38]} 19. Rxd8 {[%clk 0:01:53]}  Nxd8 {[%clk 0:02:38]} 20. Nd5 {[%clk 0:01:53]}  Nxd5 {[%clk 0:02:35]} 21. exd5 {[%clk 0:01:54]}  f5 {[%clk 0:02:31]} 22. c4 {[%clk 0:01:51]}  Kf6 {[%clk 0:02:31]} 23. c5 {[%clk 0:01:50]}  Bh2 {[%clk 0:02:24]} 24. b4 {[%clk 0:01:41]}  Bg1 {[%clk 0:02:22]} 25. f3 {[%clk 0:01:41]}  g5 {[%clk 0:02:21]} 26. Kc2 {[%clk 0:01:38]}  Bd4 {[%clk 0:02:16]} 27. Bc1 {[%clk 0:01:35]}  f4 {[%clk 0:02:00]} 28. Kd3 {[%clk 0:01:28]}  Kf5 {[%clk 0:01:48]} 29. a4 {[%clk 0:01:28]}  Ba1 {[%clk 0:01:44]} 30. b5 {[%clk 0:01:26]}  Kf6 {[%clk 0:01:36]} 31. Ke4 {[%clk 0:01:24]}  Nf7 {[%clk 0:01:31]} 32. d6 {[%clk 0:01:16]}  b6 {[%clk 0:01:25]} 33. Ba3 {[%clk 0:01:10]}  bxc5 {[%clk 0:01:20]} 34. Bxc5 {[%clk 0:01:11]}  Bd4 {[%clk 0:01:18]} 35. Kd5 {[%clk 0:01:09]}  Bxc5 {[%clk 0:01:12]} 36. Kxc5 {[%clk 0:01:10]}  Ke6 {[%clk 0:01:11]} 37. Bc4+ {[%clk 0:01:09]}  Kf6 {[%clk 0:01:10]} 38. Bxf7 {[%clk 0:01:10]}  Kxf7 {[%clk 0:01:11]} 39. Kc6 {[%clk 0:01:10]}  e4 {[%clk 0:01:10]} 40. d7 {[%clk 0:01:09]}  exf3 {[%clk 0:01:01]} 41. d8=Q {[%clk 0:01:09]}  f2 {[%clk 0:00:59]} 42. Qd5+ {[%clk 0:01:09]}  Kg6 {[%clk 0:00:56]} 43. Qf3 {[%clk 0:01:08]}  Kf5 {[%clk 0:00:55]} 44. Qxf2 {[%clk 0:01:05]} 1-0


[Site "https://www.chess.com"]

[Event "Titled Tuesday Blitz November 29 Early 2022"]
[White "Reprintsev, Alexander"]
[Black "Blokhin, Sofia"]
[WhiteFideId "14100541"]
[BlackFideId "4508190"]
[WhiteElo "2230"]
[BlackElo "2005"]
[Result "1-0"]
[Round "02"]
[TimeControl "180+1"]
[Date "2022.11.30"]
[WhiteClock "0:02:28"]
[BlackClock "0:01:47"]

1. e4 {[%clk 0:02:56]}  c5 {[%clk 0:02:59]} 2. b3 {[%clk 0:02:54]}  e6 {[%clk 0:02:58]} 3. Qe2 {[%clk 0:02:53]}  Nc6 {[%clk 0:02:55]} 4. Bb2 {[%clk 0:02:53]}  Nd4 {[%clk 0:02:52]} 5. Qd3 {[%clk 0:02:53]}  e5 {[%clk 0:02:36]} 6. Nf3 {[%clk 0:02:51]}  d6 {[%clk 0:02:35]} 7. Nxd4 {[%clk 0:02:50]}  cxd4 {[%clk 0:02:30]} 8. c3 {[%clk 0:02:51]}  dxc3 {[%clk 0:02:27]} 9. Nxc3 {[%clk 0:02:52]}  Nf6 {[%clk 0:02:25]} 10. Qb5+ {[%clk 0:02:45]}  Qd7 {[%clk 0:02:19]} 11. Rc1 {[%clk 0:02:43]}  a6 {[%clk 0:02:14]} 12. Qa4 {[%clk 0:02:36]}  Be7 {[%clk 0:02:03]} 13. Bb5 {[%clk 0:02:34]}  axb5 {[%clk 0:02:00]} 14. Qxa8 {[%clk 0:02:34]}  b4 {[%clk 0:01:58]} 15. Nd5 {[%clk 0:02:30]}  O-O {[%clk 0:01:49]} 16. Nxe7+ {[%clk 0:02:29]}  Qxe7 {[%clk 0:01:47]} 17. Rxc8 {[%clk 0:02:28]} 1-0


[Site "https://www.chess.com"]

[Event "Titled Tuesday Blitz November 29 Early 2022"]
[White "Rian, Kapriaga"]
[Black "Guliev, Logman"]
[WhiteFideId "7103263"]
[BlackFideId "13400061"]
[WhiteElo "1996"]
[BlackElo "2161"]
[Result "1-0"]
[Round "02"]
[TimeControl "180+1"]
[Date "2022.11.30"]
[WhiteClock "0:00:02"]
[BlackClock "0:00:01"]

1. d4 {[%clk 0:03:00]}  d5 {[%clk 0:02:56]} 2. Nf3 {[%clk 0:03:00]}  e6 {[%clk 0:02:56]} 3. Bf4 {[%clk 0:02:59]}  Ne7 {[%clk 0:02:56]} 4. e3 {[%clk 0:02:58]}  Ng6 {[%clk 0:02:56]} 5. Bg3 {[%clk 0:02:58]}  Bd6 {[%clk 0:02:55]} 6. Nbd2 {[%clk 0:02:56]}  Qe7 {[%clk 0:02:55]} 7. Bd3 {[%clk 0:02:49]}  Nd7 {[%clk 0:02:53]} 8. O-O {[%clk 0:02:42]}  e5 {[%clk 0:02:52]} 9. dxe5 {[%clk 0:02:38]}  Ndxe5 {[%clk 0:02:51]} 10. Nxe5 {[%clk 0:02:09]}  Bxe5 {[%clk 0:02:45]} 11. c3 {[%clk 0:02:01]}  O-O {[%clk 0:02:44]} 12. Qb3 {[%clk 0:01:56]}  c6 {[%clk 0:02:42]} 13. Rae1 {[%clk 0:01:54]}  Bxg3 {[%clk 0:02:38]} 14. hxg3 {[%clk 0:01:53]}  Bg4 {[%clk 0:02:34]} 15. Bxg6 {[%clk 0:01:41]}  hxg6 {[%clk 0:02:32]} 16. e4 {[%clk 0:01:39]}  dxe4 {[%clk 0:02:28]} 17. Rxe4 {[%clk 0:01:37]}  Qd7 {[%clk 0:02:24]} 18. Rd4 {[%clk 0:01:37]}  Qc8 {[%clk 0:02:20]} 19. Re1 {[%clk 0:01:29]}  Be6 {[%clk 0:02:18]} 20. Qa4 {[%clk 0:01:17]}  Qc7 {[%clk 0:02:17]} 21. Ne4 {[%clk 0:01:10]}  Qe5 {[%clk 0:01:46]} 22. Qd1 {[%clk 0:00:51]}  Qa5 {[%clk 0:01:32]} 23. a3 {[%clk 0:00:49]}  Qb6 {[%clk 0:01:27]} 24. Ng5 {[%clk 0:00:42]}  Bb3 {[%clk 0:01:06]} 25. Qg4 {[%clk 0:00:34]}  Rfe8 {[%clk 0:00:44]} 26. Rxe8+ {[%clk 0:00:20]}  Rxe8 {[%clk 0:00:42]} 27. Qh4 {[%clk 0:00:20]}  f6 {[%clk 0:00:18]} 28. Qh7+ {[%clk 0:00:19]}  Kf8 {[%clk 0:00:18]} 29. Rd7 {[%clk 0:00:18]}  Re7 {[%clk 0:00:14]} 30. Rxe7 {[%clk 0:00:14]}  Kxe7 {[%clk 0:00:14]} 31. Qxg7+ {[%clk 0:00:14]}  Kd6 {[%clk 0:00:14]} 32. Qxf6+ {[%clk 0:00:15]}  Kc7 {[%clk 0:00:15]} 33. Qxg6 {[%clk 0:00:14]}  Qb5 {[%clk 0:00:12]} 34. Qg7+ {[%clk 0:00:11]}  Kb6 {[%clk 0:00:11]} 35. Qd4+ {[%clk 0:00:10]}  Ka6 {[%clk 0:00:12]} 36. Ne4 {[%clk 0:00:10]}  b6 {[%clk 0:00:10]} 37. g4 {[%clk 0:00:06]}  Bd5 {[%clk 0:00:10]} 38. g5 {[%clk 0:00:04]}  Qe2 {[%clk 0:00:09]} 39. Ng3 {[%clk 0:00:03]}  Qe1+ {[%clk 0:00:08]} 40. Kh2 {[%clk 0:00:03]}  Qe8 {[%clk 0:00:06]} 41. c4 {[%clk 0:00:02]}  Bf7 {[%clk 0:00:06]} 42. Kg1 {[%clk 0:00:01]}  Qe1+ {[%clk 0:00:05]} 43. Nf1 {[%clk 0:00:02]}  Qe6 {[%clk 0:00:05]} 44. b4 {[%clk 0:00:01]}  Qxc4 {[%clk 0:00:05]} 45. Qxc4+ {[%clk 0:00:01]}  Bxc4 {[%clk 0:00:04]} 46. g6 {[%clk 0:00:01]}  c5 {[%clk 0:00:03]} 47. Ne3 {[%clk 0:00:02]}  Bg8 {[%clk 0:00:02]} 48. bxc5 {[%clk 0:00:02]}  bxc5 {[%clk 0:00:02]} 49. f4 {[%clk 0:00:02]}  c4 {[%clk 0:00:02]} 50. f5 {[%clk 0:00:02]}  c3 {[%clk 0:00:02]} 51. f6 {[%clk 0:00:02]}  Bc4 {[%clk 0:00:01]} 52. f7 {[%clk 0:00:02]} 1-0


[Site "https://www.chess.com"]

[Event "Titled Tuesday Blitz November 29 Early 2022"]
[White "Richter, Paul"]
[Black "Santos Ruiz, Miguel"]
[WhiteFideId "2046350"]
[BlackFideId "22291482"]
[WhiteElo "2548"]
[BlackElo "2503"]
[Result "0-1"]
[Round "02"]
[TimeControl "180+1"]
[Date "2022.11.30"]
[WhiteClock "0:00:02"]
[BlackClock "0:00:45"]

1. e4 {[%clk 0:02:59]}  c5 {[%clk 0:02:55]} 2. Nf3 {[%clk 0:02:58]}  e6 {[%clk 0:02:56]} 3. d3 {[%clk 0:02:56]}  Nc6 {[%clk 0:02:56]} 4. Nbd2 {[%clk 0:02:57]}  g6 {[%clk 0:02:51]} 5. g3 {[%clk 0:02:57]}  Bg7 {[%clk 0:02:51]} 6. Bg2 {[%clk 0:02:58]}  Nge7 {[%clk 0:02:51]} 7. O-O {[%clk 0:02:58]}  O-O {[%clk 0:02:51]} 8. c3 {[%clk 0:02:58]}  d5 {[%clk 0:02:51]} 9. a4 {[%clk 0:02:56]}  b6 {[%clk 0:02:51]} 10. exd5 {[%clk 0:02:50]}  exd5 {[%clk 0:02:48]} 11. Re1 {[%clk 0:02:49]}  Bf5 {[%clk 0:02:48]} 12. Nf1 {[%clk 0:02:45]}  h6 {[%clk 0:02:43]} 13. h4 {[%clk 0:02:43]}  Re8 {[%clk 0:02:42]} 14. Bf4 {[%clk 0:02:38]}  Qd7 {[%clk 0:02:40]} 15. Ne5 {[%clk 0:01:50]}  Nxe5 {[%clk 0:02:33]} 16. Bxe5 {[%clk 0:01:51]}  f6 {[%clk 0:02:22]} 17. Bf4 {[%clk 0:01:50]}  g5 {[%clk 0:02:22]} 18. hxg5 {[%clk 0:01:50]}  hxg5 {[%clk 0:02:23]} 19. Be3 {[%clk 0:01:39]}  Rac8 {[%clk 0:02:12]} 20. d4 {[%clk 0:01:37]}  c4 {[%clk 0:02:11]} 21. Nd2 {[%clk 0:01:31]}  Kf7 {[%clk 0:02:09]} 22. Qe2 {[%clk 0:00:44]}  Rh8 {[%clk 0:02:06]} 23. f3 {[%clk 0:00:37]}  Bg6 {[%clk 0:01:59]} 24. g4 {[%clk 0:00:31]}  Qc7 {[%clk 0:01:48]} 25. Nf1 {[%clk 0:00:29]}  Bd3 {[%clk 0:01:47]} 26. Qf2 {[%clk 0:00:29]}  Ng6 {[%clk 0:01:39]} 27. f4 {[%clk 0:00:15]}  gxf4 {[%clk 0:01:24]} 28. Bxd5+ {[%clk 0:00:15]}  Kf8 {[%clk 0:01:24]} 29. Bd2 {[%clk 0:00:16]}  Rd8 {[%clk 0:01:19]} 30. Bf3 {[%clk 0:00:15]}  Nh4 {[%clk 0:01:17]} 31. Nh2 {[%clk 0:00:15]}  Rh6 {[%clk 0:01:13]} 32. Bh1 {[%clk 0:00:15]}  Qd7 {[%clk 0:00:59]} 33. Bxf4 {[%clk 0:00:14]}  Rh7 {[%clk 0:00:59]} 34. Re3 {[%clk 0:00:13]}  Ng6 {[%clk 0:00:58]} 35. Bg3 {[%clk 0:00:12]}  Bh6 {[%clk 0:00:57]} 36. Rf3 {[%clk 0:00:13]}  Kg8 {[%clk 0:00:55]} 37. Rxf6 {[%clk 0:00:12]}  Re8 {[%clk 0:00:55]} 38. Re1 {[%clk 0:00:11]}  Rxe1+ {[%clk 0:00:54]} 39. Qxe1 {[%clk 0:00:12]}  Re7 {[%clk 0:00:55]} 40. Rxg6+ {[%clk 0:00:05]}  Bxg6 {[%clk 0:00:54]} 41. Be5 {[%clk 0:00:06]}  Qxa4 {[%clk 0:00:50]} 42. Qe2 {[%clk 0:00:05]}  Qc2 {[%clk 0:00:49]} 43. Qxc4+ {[%clk 0:00:03]}  Kh7 {[%clk 0:00:48]} 44. Bg2 {[%clk 0:00:01]}  Be3+ {[%clk 0:00:45]} 45. Kh1 {[%clk 0:00:02]}  Be4 {[%clk 0:00:45]} 0-1


[Site "https://www.chess.com"]

[Event "Titled Tuesday Blitz November 29 Early 2022"]
[White "Rios Escobar, Adan"]
[Black "Ronka, Erik"]
[WhiteFideId "3403645"]
[BlackFideId "505080"]
[WhiteElo "2334"]
[BlackElo "2264"]
[Result "0-1"]
[Round "02"]
[TimeControl "180+1"]
[Date "2022.11.30"]
[WhiteClock "0:00:01"]
[BlackClock "0:00:08"]

1. d4 {[%clk 0:03:00]}  Nf6 {[%clk 0:02:55]} 2. g3 {[%clk 0:03:01]}  c5 {[%clk 0:02:52]} 3. d5 {[%clk 0:03:00]}  b5 {[%clk 0:02:52]} 4. a4 {[%clk 0:02:59]}  Bb7 {[%clk 0:02:47]} 5. Bg2 {[%clk 0:02:47]}  e6 {[%clk 0:02:46]} 6. e4 {[%clk 0:02:32]}  a6 {[%clk 0:02:46]} 7. axb5 {[%clk 0:02:26]}  axb5 {[%clk 0:02:46]} 8. Rxa8 {[%clk 0:02:27]}  Bxa8 {[%clk 0:02:46]} 9. Ne2 {[%clk 0:02:07]}  d6 {[%clk 0:02:42]} 10. dxe6 {[%clk 0:01:57]}  fxe6 {[%clk 0:02:40]} 11. Nf4 {[%clk 0:01:44]}  e5 {[%clk 0:02:16]} 12. Ne6 {[%clk 0:01:33]}  Qd7 {[%clk 0:02:13]} 13. Bh3 {[%clk 0:01:06]}  Bxe4 {[%clk 0:02:04]} 14. O-O {[%clk 0:01:06]}  Qc6 {[%clk 0:01:47]} 15. Nc3 {[%clk 0:01:05]}  Bf3 {[%clk 0:01:41]} 16. Qd3 {[%clk 0:00:55]}  c4 {[%clk 0:01:22]} 17. Qf5 {[%clk 0:00:53]}  Nbd7 {[%clk 0:01:09]} 18. Nxb5 {[%clk 0:00:49]}  Qe4 {[%clk 0:00:37]} 19. Nec7+ {[%clk 0:00:33]}  Kd8 {[%clk 0:00:32]} 20. Qe6 {[%clk 0:00:33]}  Bg4 {[%clk 0:00:21]} 21. Bxg4 {[%clk 0:00:26]}  Qxg4 {[%clk 0:00:22]} 22. Qf7 {[%clk 0:00:17]}  Qg6 {[%clk 0:00:18]} 23. Qxc4 {[%clk 0:00:14]}  Qe4 {[%clk 0:00:16]} 24. Qe6 {[%clk 0:00:10]}  Qg4 {[%clk 0:00:15]} 25. Qf7 {[%clk 0:00:09]}  Qg6 {[%clk 0:00:15]} 26. Qa2 {[%clk 0:00:10]}  Ke7 {[%clk 0:00:13]} 27. Re1 {[%clk 0:00:06]}  Qf7 {[%clk 0:00:12]} 28. Qa8 {[%clk 0:00:05]}  Qc4 {[%clk 0:00:11]} 29. Bg5 {[%clk 0:00:04]}  Kf7 {[%clk 0:00:11]} 30. Nxd6+ {[%clk 0:00:01]}  Bxd6 {[%clk 0:00:10]} 31. Qxh8 {[%clk 0:00:01]}  Qxc7 {[%clk 0:00:10]} 32. Bxf6 {[%clk 0:00:01]}  Nxf6 {[%clk 0:00:10]} 33. Qa8 {[%clk 0:00:01]}  Qxc2 {[%clk 0:00:09]} 34. Ra1 {[%clk 0:00:01]}  Qxb2 {[%clk 0:00:09]} 35. Ra7+ {[%clk 0:00:01]}  Kg6 {[%clk 0:00:09]} 36. Qf3 {[%clk 0:00:01]}  Bc5 {[%clk 0:00:08]} 0-1


[Site "https://www.chess.com"]